fUST/lending_fUST_20250609
["ID","MTS","AMOUNT","RATE_DAILY","PERIOD"]
[365025602,1749412237398,-440.0,0.00019452,2]
[365025603,1749412237407,-458.12153307,0.00019452,2]
[365025604,1749412237417,-440.0,0.00019452,2]
[365025605,1749412237427,-440.0,0.00019452,2]
[365025606,1749412237436,-420.0,0.00019452,2]
[365025607,1749412237446,-440.0,0.00019452,2]
[365025608,1749412237456,-440.0,0.00019452,2]
[365025609,1749412237466,-440.0,0.00019452,2]
[365025610,1749412237476,-390.0,0.00019452,2]
[365025611,1749412237486,-440.0,0.00019452,2]
[365025612,1749412237496,-440.0,0.00019452,2]
[365025613,1749412237505,-440.0,0.00019452,2]
[365025614,1749412237515,-407.90120813,0.00019452,2]
[365025615,1749412237525,-477.88930111,0.00019452,2]
[365025616,1749412237535,-440.0,0.00019452,2]
[365025617,1749412237544,-410.0,0.00019452,2]
[365025618,1749412237554,-440.0,0.00019452,2]
[365025619,1749412237564,-410.0,0.00019452,2]
[365025620,1749412237573,-440.0,0.00019452,2]
[365025621,1749412237583,-440.0,0.00019452,2]
[365025622,1749412237593,-440.0,0.00019452,2]
[365025623,1749412237603,-440.0,0.00019452,2]
[365025624,1749412237612,-440.0,0.00019452,2]
[365025625,1749412237622,-440.0,0.00019452,2]
[365025626,1749412237632,-440.0,0.00019452,2]
[365025627,1749412237641,-302.24617099,0.00019452,2]
[365025628,1749412237651,-440.0,0.00019452,2]
[365025629,1749412237660,-686.14,0.00019452,2]
[365025630,1749412237670,-440.0,0.00019452,2]
[365025631,1749412237680,-440.0,0.00019452,2]
[365025632,1749412237690,-440.0,0.00019452,2]
[365025633,1749412237702,-440.0,0.00019452,2]
[365025634,1749412237713,-400.0,0.00019452,2]
[365025635,1749412237723,-430.0,0.00019452,2]
[365025636,1749412237733,-1799.44,0.00019452,2]
[365025637,1749412237743,-1235.66,0.00019452,2]
[365025638,1749412237754,-440.0,0.00019452,2]
[365025639,1749412237764,-440.0,0.00019452,2]
[365025640,1749412237774,-400.0,0.00019452,2]
[365025641,1749412237784,-440.0,0.00019452,2]
[365025642,1749412237794,-400.0,0.00019452,2]
[365025643,1749412237804,-440.0,0.00019452,2]
[365025644,1749412237814,-440.0,0.00019452,2]
[365025645,1749412237824,-440.0,0.00019452,2]
[365025646,1749412237834,-440.0,0.00019452,2]
[365025647,1749412237844,-440.0,0.00019452,2]
[365025648,1749412237854,-440.0,0.00019452,2]
[365025649,1749412237865,-440.0,0.00019452,2]
[365025650,1749412237876,-440.0,0.00019452,2]
[365025651,1749412237886,-440.0,0.00019452,2]
[365025652,1749412237896,-440.0,0.00019452,2]
[365025653,1749412237905,-160.94,0.00019452,2]
[365025654,1749412237916,-440.0,0.00019452,2]
[365025655,1749412237925,-430.0,0.00019452,2]
[365025656,1749412237936,-440.0,0.00019452,2]
[365025657,1749412237947,-440.0,0.00019452,2]
[365025658,1749412237957,-440.0,0.00019452,2]
[365025659,1749412237967,-400.0,0.00019452,2]
[365025660,1749412237976,-400.0,0.00019452,2]
[365025661,1749412237985,-400.0,0.00019452,2]
[365025662,1749412237995,-440.0,0.00019452,2]
[365025663,1749412238005,-440.0,0.00019452,2]
[365025664,1749412238015,-1084.25,0.00019452,2]
[365025665,1749412238024,-440.0,0.00019452,2]
[365025666,1749412238034,-400.0,0.00019452,2]
[365025667,1749412238045,-440.0,0.00019452,2]
[365025668,1749412238054,-390.0,0.00019452,2]
[365025669,1749412238064,-1029.2,0.00019452,2]
[365025670,1749412238073,-440.0,0.00019452,2]
[365025671,1749412238082,-440.0,0.00019452,2]
[365025672,1749412238092,-1336.21,0.00019452,2]
[365025673,1749412238101,-440.0,0.00019452,2]
[365025674,1749412238113,-440.0,0.00019452,2]
[365025675,1749412238123,-1203.52,0.00019452,2]
[365025676,1749412238133,-440.0,0.00019452,2]
[365025677,1749412238143,-2138.02,0.00019452,2]
[365025678,1749412238153,-440.0,0.00019452,2]
[365025679,1749412238162,-440.0,0.00019452,2]
[365025680,1749412238172,-440.0,0.00019452,2]
[365025681,1749412238182,-440.0,0.00019452,2]
[365025684,1749412238192,-440.0,0.00019452,2]
[365025687,1749412238204,-440.0,0.00019452,2]
[365025689,1749412238214,-1283.81,0.00019452,2]
[365025691,1749412238224,-440.0,0.00019452,2]
[365025693,1749412238234,-1566.93,0.00019452,2]
[365025695,1749412238244,-440.0,0.00019452,2]
[365025698,1749412238254,-440.0,0.00019452,2]
[365025700,1749412238264,-440.0,0.00019452,2]
[365025702,1749412238274,-440.0,0.00019452,2]
[365025704,1749412238284,-440.0,0.00019452,2]
[365025705,1749412238293,-440.0,0.00019452,2]
[365025707,1749412238303,-350.0,0.00019452,2]
[365025710,1749412238313,-440.0,0.00019452,2]
[365025712,1749412238323,-800.0,0.0001952,2]
[365025714,1749412238333,-800.0,0.00019643,2]
[365025717,1749412238343,-400.0,0.0001966,2]
[365025720,1749412238354,-1200.0,0.00019709,2]
[365025723,1749412238364,-3170.7,0.00019709,2]
[365025726,1749412238374,-3170.7,0.00019709,2]
[365025729,1749412238384,-3170.7,0.00019709,2]
[365025732,1749412238394,-3170.6,0.00019709,2]
[365025735,1749412238404,-500.0,0.0001972,2]
[365025738,1749412238414,-500.0,0.00019725,2]
[365025741,1749412238423,-500.0,0.00019725,2]
[365025745,1749412238433,-440.0,0.00019726,2]
[365025748,1749412238444,-440.0,0.00019726,2]
[365025751,1749412238454,-440.0,0.00019726,2]
[365025754,1749412238464,-285.78953446,0.00019726,2]
[365025757,1749412238474,-440.0,0.00019726,2]
[365025760,1749412238484,-440.0,0.00019726,2]
[365025763,1749412238494,-440.0,0.00019726,2]
[365025766,1749412238503,-440.0,0.00019726,2]
[365025769,1749412238513,-440.0,0.00019726,2]
[365025772,1749412238522,-440.0,0.00019726,2]
[365025775,1749412238531,-279.58,0.00019726,2]
[365025778,1749412238541,-440.0,0.00019726,2]
[365025781,1749412238550,-440.0,0.00019726,2]
[365025784,1749412238560,-440.0,0.00019726,2]
[365025787,1749412238569,-440.0,0.00019726,2]
[365025790,1749412238578,-440.0,0.00019726,2]
[365025794,1749412238588,-440.0,0.00019726,2]
[365025797,1749412238598,-440.0,0.00019726,2]
[365025800,1749412238608,-534.04713032,0.00019726,2]
[365025802,1749412238617,-440.0,0.00019726,2]
[365025805,1749412238627,-440.0,0.00019726,2]
[365025808,1749412238636,-440.0,0.00019726,2]
[365025810,1749412238645,-686.14,0.00019726,2]
[365025812,1749412238655,-440.0,0.00019726,2]
[365025814,1749412238664,-430.0,0.00019726,2]
[365025816,1749412238673,-440.0,0.00019726,2]
[365025818,1749412238683,-440.0,0.00019726,2]
[365025820,1749412238692,-1799.44,0.00019726,2]
[365025822,1749412238701,-1235.66,0.00019726,2]
[365025824,1749412238711,-440.0,0.00019726,2]
[365025826,1749412238721,-440.0,0.00019726,2]
[365025828,1749412238731,-440.0,0.00019726,2]
[365025830,1749412238741,-440.0,0.00019726,2]
[365025832,1749412238750,-440.0,0.00019726,2]
[365025834,1749412238760,-440.0,0.00019726,2]
[365025836,1749412238769,-440.0,0.00019726,2]
[365025838,1749412238779,-440.0,0.00019726,2]
[365025840,1749412238789,-440.0,0.00019726,2]
[365025842,1749412238798,-440.0,0.00019726,2]
[365025845,1749412238808,-440.0,0.00019726,2]
[365025848,1749412238818,-440.0,0.00019726,2]
[365025851,1749412238830,-390.0,0.00019726,2]
[365025853,1749412238839,-510.34076166,0.00019726,2]
[365025855,1749412238849,-440.0,0.00019726,2]
[365025857,1749412238859,-397.58745214,0.00019726,2]
[365025859,1749412238868,-440.0,0.00019726,2]
[365025861,1749412238878,-1084.25,0.00019726,2]
[365025863,1749412238887,-440.0,0.00019726,2]
[365025865,1749412238897,-440.0,0.00019726,2]
[365025867,1749412238907,-1029.2,0.00019726,2]
[365025869,1749412238916,-440.0,0.00019726,2]
[365025871,1749412238925,-440.0,0.00019726,2]
[365025873,1749412238934,-1336.21,0.00019726,2]
[365025875,1749412238944,-440.0,0.00019726,2]
[365025878,1749412238954,-440.0,0.00019726,2]
[365025880,1749412238964,-1203.52,0.00019726,2]
[365025882,1749412238974,-440.0,0.00019726,2]
[365025884,1749412238984,-2138.02,0.00019726,2]
[365025886,1749412238994,-440.0,0.00019726,2]
[365025888,1749412239003,-440.0,0.00019726,2]
[365025890,1749412239013,-440.0,0.00019726,2]
[365025892,1749412239022,-440.0,0.00019726,2]
[365025894,1749412239032,-440.0,0.00019726,2]
[365025896,1749412239043,-309.06383892,0.00019726,2]
[365025898,1749412239053,-1283.81,0.00019726,2]
[365025900,1749412239062,-440.0,0.00019726,2]
[365025902,1749412239072,-1566.93,0.00019726,2]
[365025904,1749412239081,-440.0,0.00019726,2]
[365025905,1749412239090,-440.0,0.00019726,2]
[365025907,1749412239100,-440.0,0.00019726,2]
[365025910,1749412239110,-300.89141003,0.00019726,2]
[365025912,1749412239119,-440.0,0.00019726,2]
[365025913,1749412239129,-440.0,0.00019726,2]
[365025914,1749412239174,-180.0,0.00019726,2]
[365025915,1749412239183,-440.0,0.00019726,2]
[365025916,1749412239192,-420.0,0.00019775,2]
[365025917,1749412239202,-420.0,0.00019775,2]
[365025918,1749412239211,-303.0,0.00019775,2]
[365025920,1749412239220,-480.0,0.00019872,2]
[365025922,1749412239230,-500.0,0.00019899,2]
[365025923,1749412239239,-13368.27005855,0.000199,2]
[365025924,1749412239248,-500.0,0.00019999,2]
[365025925,1749412239257,-440.0,0.0002,2]
[365025926,1749412239266,-440.0,0.0002,2]
[365025927,1749412239275,-380.0,0.0002,2]
[365025928,1749412239284,-440.0,0.0002,2]
[365025929,1749412239293,-360.0,0.0002,2]
[365025930,1749412239303,-440.0,0.0002,2]
[365025931,1749412239312,-440.0,0.0002,2]
[365025932,1749412239322,-440.0,0.0002,2]
[365025933,1749412239331,-440.0,0.0002,2]
[365025934,1749412239340,-440.0,0.0002,2]
[365025935,1749412239350,-440.0,0.0002,2]
[365025936,1749412239359,-440.0,0.0002,2]
[365025937,1749412239369,-440.0,0.0002,2]
[365025938,1749412239378,-440.0,0.0002,2]
[365025939,1749412239389,-440.0,0.0002,2]
[365025940,1749412239399,-686.14,0.0002,2]
[365025941,1749412239408,-440.0,0.0002,2]
[365025942,1749412239418,-440.0,0.0002,2]
[365025943,1749412239428,-440.0,0.0002,2]
[365025944,1749412239441,-1799.44,0.0002,2]
[365025945,1749412239451,-1235.66,0.0002,2]
[365025946,1749412239462,-440.0,0.0002,2]
[365025947,1749412239472,-440.0,0.0002,2]
[365025948,1749412239482,-440.0,0.0002,2]
[365025949,1749412239492,-440.0,0.0002,2]
[365025950,1749412239504,-440.0,0.0002,2]
[365025951,1749412239515,-440.0,0.0002,2]
[365025952,1749412239525,-338.16,0.0002,2]
[365025953,1749412239535,-357.20016576,0.0002,2]
[365025954,1749412239545,-440.0,0.0002,2]
[365025955,1749412239555,-440.0,0.0002,2]
[365025956,1749412239566,-440.0,0.0002,2]
[365025957,1749412239576,-440.0,0.0002,2]
[365025958,1749412239586,-440.0,0.0002,2]
[365025959,1749412239597,-1084.25,0.0002,2]
[365025960,1749412239607,-440.0,0.0002,2]
[365025961,1749412239616,-440.0,0.0002,2]
[365025962,1749412239625,-1029.2,0.0002,2]
[365025963,1749412239634,-440.0,0.0002,2]
[365025964,1749412239643,-440.0,0.0002,2]
[365025965,1749412239652,-1336.21,0.0002,2]
[365025966,1749412239662,-440.0,0.0002,2]
[365025967,1749412239671,-403.10926114,0.0002,2]
[365025968,1749412239680,-1203.52,0.0002,2]
[365025969,1749412239690,-440.0,0.0002,2]
[365025970,1749412239699,-2138.02,0.0002,2]
[365025971,1749412239708,-440.0,0.0002,2]
[365025972,1749412239718,-440.0,0.0002,2]
[365025973,1749412239727,-440.0,0.0002,2]
[365025974,1749412239736,-440.0,0.0002,2]
[365025975,1749412239745,-440.0,0.0002,2]
[365025976,1749412239754,-1283.81,0.0002,2]
[365025977,1749412239763,-440.0,0.0002,2]
[365025978,1749412239773,-1566.93,0.0002,2]
[365025979,1749412239782,-440.0,0.0002,2]
[365025980,1749412239791,-440.0,0.0002,2]
[365025981,1749412239801,-440.0,0.0002,2]
[365025982,1749412239811,-440.0,0.0002,2]
[365025983,1749412239820,-440.0,0.0002,2]
[365025984,1749412239829,-440.0,0.0002,2]
[365025985,1749412239838,-186.7,0.00020072,2]
[365025986,1749412239847,-13368.27005838,0.00020072,2]
[365025987,1749412239856,-178.551,0.00020149,2]
[365025988,1749412239866,-527.284947,0.00020187,2]
[365025989,1749412239875,-13368.27005838,0.00020245,2]
[365025990,1749412239884,-151.0,0.00020245,2]
[365025991,1749412239894,-151.0,0.00020245,2]
[365025992,1749412239904,-500.0,0.00020268,2]
[365025993,1749412239913,-440.0,0.00020273,2]
[365025994,1749412239923,-373.43060188,0.00020273,2]
[365025995,1749412239932,-440.0,0.00020273,2]
[365025996,1749412239942,-440.0,0.00020273,2]
[365025997,1749412239952,-310.0,0.00020273,2]
[365025998,1749412239961,-440.0,0.00020273,2]
[365025999,1749412239972,-440.0,0.00020273,2]
[365026000,1749412239982,-440.0,0.00020273,2]
[365026001,1749412239992,-440.0,0.00020273,2]
[365026002,1749412240002,-440.0,0.00020273,2]
[365026003,1749412240012,-686.14,0.00020273,2]
[365026004,1749412240021,-440.0,0.00020273,2]
[365026005,1749412240031,-151.0,0.00020273,2]
[365026006,1749412240044,-151.0,0.00020273,2]
[365026007,1749412240054,-512.33197713,0.00020273,2]
[365026008,1749412240063,-440.0,0.00020273,2]
[365026009,1749412240074,-1799.44,0.00020273,2]
[365026010,1749412240085,-1235.66,0.00020273,2]
[365026011,1749412240094,-440.0,0.00020273,2]
[365026012,1749412240103,-440.0,0.00020273,2]
[365026013,1749412240114,-440.0,0.00020273,2]
[365026014,1749412240124,-440.0,0.00020273,2]
[365026015,1749412240134,-440.0,0.00020273,2]
[365026016,1749412240144,-440.0,0.00020273,2]
[365026017,1749412240154,-440.0,0.00020273,2]
[365026018,1749412240163,-440.0,0.00020273,2]
[365026019,1749412240173,-440.0,0.00020273,2]
[365026020,1749412240183,-440.0,0.00020273,2]
[365026021,1749412240192,-440.0,0.00020273,2]
[365026022,1749412240203,-1084.25,0.00020273,2]
[365026023,1749412240212,-378.44,0.00020273,2]
[365026024,1749412240223,-440.0,0.00020273,2]
[365026026,1749412240232,-1029.2,0.00020273,2]
[365026027,1749412240241,-440.0,0.00020273,2]
[365026028,1749412240252,-1336.21,0.00020273,2]
[365026029,1749412240262,-440.0,0.00020273,2]
[365026030,1749412240271,-151.0,0.00020273,2]
[365026031,1749412240281,-1203.52,0.00020273,2]
[365026034,1749412240290,-2138.02,0.00020273,2]
[365026035,1749412240300,-440.0,0.00020273,2]
[365026036,1749412240310,-440.0,0.00020273,2]
[365026037,1749412240320,-440.0,0.00020273,2]
[365026038,1749412240330,-440.0,0.00020273,2]
[365026039,1749412240340,-440.0,0.00020273,2]
[365026040,1749412240350,-1283.81,0.00020273,2]
[365026041,1749412240360,-440.0,0.00020273,2]
[365026042,1749412240370,-1566.93,0.00020273,2]
[365026043,1749412240379,-475.54,0.00020273,2]
[365026044,1749412240389,-440.0,0.00020273,2]
[365026045,1749412240400,-440.0,0.00020273,2]
[365026046,1749412240411,-440.0,0.00020273,2]
[365026047,1749412240421,-440.0,0.00020273,2]
[365026048,1749412240431,-440.0,0.00020273,2]
[365026049,1749412240441,-834.62475315,0.00020377,2]
[365026050,1749412240451,-160.0,0.00020377,2]
[365026051,1749412240461,-423.98131849,0.00020377,2]
[365026052,1749412240472,-160.0,0.00020377,2]
[365026053,1749412240483,-229.60437222,0.00020377,2]
[365026054,1749412240494,-213.05153702,0.00020377,2]
[365026055,1749412240505,-842.5625,0.00020378,2]
[365026056,1749412240515,-160.0,0.0002038,2]
[365026057,1749412240525,-13368.27005838,0.00020417,3]
[365026058,1749412240534,-151.38444775,0.00020504,2]
[365026059,1749412240544,-151.0,0.00020504,2]
[365026060,1749412240553,-151.0,0.00020504,2]
[365026061,1749412240563,-151.0,0.00020504,2]
[365026062,1749412240573,-151.31320155,0.00020504,2]
[365026063,1749412240583,-225.80818033,0.00020504,2]
[365026064,1749412240594,-270.84783991,0.00020504,2]
[365026065,1749412240604,-151.0,0.00020504,2]
[365026066,1749412240615,-193.34465452,0.00020504,2]
[365026067,1749412240628,-151.0,0.00020504,2]
[365026068,1749412240639,-151.0,0.00020504,2]
[365026069,1749412240650,-151.0,0.00020504,2]
[365026070,1749412240661,-230.39526265,0.00020504,2]
[365026071,1749412240671,-151.0,0.00020531,2]
[365026072,1749412240681,-151.0,0.00020547,2]
[365026073,1749412240691,-151.0,0.00020547,2]
[365026074,1749412240700,-440.0,0.00020547,2]
[365026075,1749412240710,-151.0,0.00020547,2]
[365026076,1749412240720,-209.970281,0.00020547,2]
[365026077,1749412240730,-209.970281,0.00020547,2]
[365026078,1749412240740,-151.0,0.00020547,2]
[365026079,1749412240750,-151.0,0.00020547,2]
[365026080,1749412240759,-440.0,0.00020547,2]
[365026081,1749412240771,-440.0,0.00020547,2]
[365026082,1749412240780,-440.0,0.00020547,2]
[365026083,1749412240790,-440.0,0.00020547,2]
[365026084,1749412240801,-440.0,0.00020547,2]
[365026085,1749412240813,-686.14,0.00020547,2]
[365026086,1749412240823,-440.0,0.00020547,2]
[365026087,1749412240834,-430.0,0.00020547,2]
[365026088,1749412240845,-1799.44,0.00020547,2]
[365026089,1749412240857,-1235.66,0.00020547,2]
[365026090,1749412240867,-440.0,0.00020547,2]
[365026091,1749412240877,-440.0,0.00020547,2]
[365026092,1749412240886,-440.0,0.00020547,2]
[365026093,1749412240896,-440.0,0.00020547,2]
[365026094,1749412240906,-440.0,0.00020547,2]
[365026095,1749412240916,-440.0,0.00020547,2]
[365026096,1749412240926,-192.929993,0.00020547,2]
[365026097,1749412240935,-192.929993,0.00020547,2]
[365026099,1749412240946,-440.0,0.00020547,2]
[365026101,1749412240956,-440.0,0.00020547,2]
[365026103,1749412240966,-440.0,0.00020547,2]
[365026105,1749412240976,-440.0,0.00020547,2]
[365026108,1749412240986,-440.0,0.00020547,2]
[365026110,1749412240996,-1084.25,0.00020547,2]
[365026111,1749412241007,-1029.2,0.00020547,2]
[365026112,1749412241017,-433.99041136,0.00020547,2]
[365026113,1749412241026,-1336.21,0.00020547,2]
[365026115,1749412241039,-1203.52,0.00020547,2]
[365026117,1749412241049,-2138.02,0.00020547,2]
[365026118,1749412241059,-440.0,0.00020547,2]
[365026119,1749412241069,-440.0,0.00020547,2]
[365026120,1749412241080,-440.0,0.00020547,2]
[365026121,1749412241093,-440.0,0.00020547,2]
[365026122,1749412241103,-440.0,0.00020547,2]
[365026123,1749412241114,-1283.81,0.00020547,2]
[365026124,1749412241124,-1566.93,0.00020547,2]
[365026125,1749412241133,-440.0,0.00020547,2]
[365026126,1749412241143,-440.0,0.00020547,2]
[365026127,1749412241153,-440.0,0.00020547,2]
[365026128,1749412241163,-440.0,0.00020547,2]
[365026129,1749412241173,-229.39,0.00020547,2]
[365026130,1749412241184,-440.0,0.00020547,2]
[365026131,1749412241194,-151.0,0.00020548,2]
[365026132,1749412241203,-151.0,0.00020559,2]
[365026133,1749412241213,-151.0,0.00020586,2]
[365026134,1749412241223,-13368.27005838,0.0002059,3]
[365026135,1749412241233,-151.0,0.0002059,2]
[365026136,1749412241243,-151.0,0.0002059,2]
[365026137,1749412241252,-151.0,0.0002059,2]
[365026138,1749412241261,-151.0,0.0002059,2]
[365026139,1749412241271,-390.73,0.000206,2]
[365026140,1749412241281,-13368.27005838,0.00020762,3]
[365026141,1749412241290,-1200.0,0.00020805,2]
[365026142,1749412241300,-440.0,0.00020821,2]
[365026143,1749412241309,-151.0,0.00020821,2]
[365026144,1749412241319,-328.92,0.00020821,2]
[365026145,1749412241329,-440.0,0.00020821,2]
[365026146,1749412241339,-440.0,0.00020821,2]
[365026147,1749412241349,-440.0,0.00020821,2]
[365026148,1749412241359,-686.14,0.00020821,2]
[365026149,1749412241369,-151.0,0.00020821,2]
[365026150,1749412241379,-1799.44,0.00020821,2]
[365026151,1749412241389,-1235.66,0.00020821,2]
[365026152,1749412241400,-440.0,0.00020821,2]
[365026153,1749412241411,-440.0,0.00020821,2]
[365026154,1749412241420,-440.0,0.00020821,2]
[365026155,1749412241431,-440.0,0.00020821,2]
[365026156,1749412241441,-440.0,0.00020821,2]
[365026157,1749412241451,-440.0,0.00020821,2]
[365026158,1749412241461,-420.0,0.00020821,2]
[365026159,1749412241471,-440.0,0.00020821,2]
[365026160,1749412241481,-200.781427,0.00020821,2]
[365026161,1749412241491,-200.781427,0.00020821,2]
[365026162,1749412241502,-440.0,0.00020821,2]
[365026163,1749412241512,-440.0,0.00020821,2]
[365026164,1749412241523,-1084.25,0.00020821,2]
[365026165,1749412241533,-1029.2,0.00020821,2]
[365026166,1749412241542,-151.0,0.00020821,2]
[365026167,1749412241553,-1336.21,0.00020821,2]
[365026168,1749412241563,-1203.52,0.00020821,2]
[365026169,1749412241573,-974.49654523,0.00020821,2]
[365026170,1749412241696,-1163.52345477,0.00020821,2]
[365026171,1749412241706,-151.0,0.00020821,2]
[365026172,1749412241716,-500.12,0.00020821,2]
[365026173,1749412241726,-440.0,0.00020821,2]
[365026174,1749412241736,-440.0,0.00020821,2]
[365026175,1749412241746,-440.0,0.00020821,2]
[365026176,1749412241757,-440.0,0.00020821,2]
[365026177,1749412241767,-1283.81,0.00020821,2]
[365026178,1749412241777,-1566.93,0.00020821,2]
[365026179,1749412241787,-440.0,0.00020821,2]
[365026180,1749412241796,-440.0,0.00020821,2]
[365026181,1749412241807,-440.0,0.00020821,2]
[365026182,1749412241817,-440.0,0.00020821,2]
[365026183,1749412241828,-440.0,0.00020821,2]
[365026184,1749412241955,-1689.94,0.000209,2]
[365026185,1749412241968,-13368.27005838,0.00020934,4]
[365026186,1749412241978,-151.0,0.00020935,2]
[365026187,1749412241989,-151.0,0.00021095,2]
[365026188,1749412241998,-151.0,0.00021095,2]
[365026189,1749412242008,-440.0,0.00021095,2]
[365026190,1749412242018,-151.0,0.00021095,2]
[365026191,1749412242029,-151.0,0.00021095,2]
[365026192,1749412242043,-440.0,0.00021095,2]
[365026193,1749412242053,-440.0,0.00021095,2]
[365026194,1749412242063,-440.0,0.00021095,2]
[365026195,1749412242072,-686.14,0.00021095,2]
[365026196,1749412242082,-1799.44,0.00021095,2]
[365026197,1749412242092,-1235.66,0.00021095,2]
[365026198,1749412242103,-440.0,0.00021095,2]
[365026199,1749412242113,-440.0,0.00021095,2]
[365026200,1749412242124,-440.0,0.00021095,2]
[365026201,1749412242134,-151.0,0.00021095,2]
[365026202,1749412242143,-440.0,0.00021095,2]
[365026203,1749412242153,-440.0,0.00021095,2]
[365026204,1749412242163,-440.0,0.00021095,2]
[365026205,1749412242172,-151.0,0.00021095,2]
[365026206,1749412242182,-440.0,0.00021095,2]
[365026207,1749412242192,-440.0,0.00021095,2]
[365026208,1749412242202,-440.0,0.00021095,2]
[365026209,1749412242214,-1084.25,0.00021095,2]
[365026210,1749412242224,-1029.2,0.00021095,2]
[365026211,1749412242234,-1336.21,0.00021095,2]
[365026212,1749412242244,-1203.52,0.00021095,2]
[365026213,1749412242255,-2138.02,0.00021095,2]
[365026214,1749412242265,-440.0,0.00021095,2]
[365026215,1749412242276,-440.0,0.00021095,2]
[365026216,1749412242286,-440.0,0.00021095,2]
[365026217,1749412242296,-1283.81,0.00021095,2]
[365026218,1749412242309,-1566.93,0.00021095,2]
[365026219,1749412242319,-440.0,0.00021095,2]
[365026220,1749412242330,-440.0,0.00021095,2]
[365026221,1749412242340,-440.0,0.00021095,2]
[365026222,1749412242352,-440.0,0.00021095,2]
[365026223,1749412242363,-7348.55386365,0.00021107,4]
[365026224,1749412242715,-487.31745262,0.00019078,2]
[365026225,1749412242727,-440.0,0.00019178,2]
[365026226,1749412242737,-440.0,0.00019178,2]
[365026227,1749412242747,-233.94,0.00019452,2]
[365026228,1749412242758,-487.31745261,0.0001982,2]
[365026229,1749412242768,-487.31745261,0.00020562,2]
[365026230,1749412242778,-6019.71619473,0.00021107,4]
[365026231,1749412242788,-152.148333,0.00021107,2]
[365026232,1749412242798,-209.970281,0.00021107,2]
[365026233,1749412242808,-209.970281,0.00021107,2]
[365026234,1749412242817,-151.0,0.00021107,2]
[365026235,1749412242828,-192.929993,0.00021107,2]
[365026236,1749412242839,-192.929993,0.00021107,2]
[365026237,1749412242848,-160.0,0.00021134,3]
[365026238,1749412242857,-500.0,0.00021246,2]
[365026239,1749412242867,-500.0,0.00021246,2]
[365026240,1749412242875,-151.0,0.00021279,2]
[365026241,1749412242886,-169.111676,0.00021279,2]
[365026242,1749412242896,-151.0,0.00021279,2]
[365026243,1749412242905,-6.66256999,0.00021279,5]
[365026244,1749412242918,-13361.60748839,0.00021279,5]
[365026245,1749412242927,-153.0,0.00021288,2]
[365026246,1749412242938,-176.7524085,0.00021288,2]
[365026247,1749412242949,-158.6873432,0.00021288,2]
[365026248,1749412242967,-573.126752,0.00021288,2]
[365026249,1749412242977,-159.5513002,0.00021288,2]
[365026250,1749412242987,-151.0,0.0002131,2]